bitfinex-derivatives/quotes_SOLF0:USTF0_20250706
["timestamp","ask_amount","ask_price","bid_price","bid_amount"]
[1751796074952,5.06797123,146.76,146.74,196.48]
[1751796075156,5.06797123,146.75,146.74,203.2928]
[1751796077164,5.06797123,146.75,146.74,196.48]
[1751796079368,5.06797123,146.75,146.74,203.293]
[1751796080166,9.46468683,146.8,146.76,6.812]
[1751796080361,16.88663255,146.79,146.77,196.94]
[1751796080567,14.1891355,146.78,146.77,196.94]
[1751796080864,16.88678911,146.78,146.77,196.94]
[1751796082266,23.69798911,146.78,146.77,196.94]
[1751796082668,16.88678911,146.78,146.77,196.94]
[1751796083467,23.69798911,146.78,146.77,196.94]
[1751796083766,23.69587019,146.78,146.77,196.94]
[1751796085071,16.88467019,146.78,146.72,6.8137]
[1751796085371,16.88467019,146.77,146.73,196.84]
[1751796085565,6.8126,146.75,146.73,196.84]
[1751796085863,5.06979866,146.74,146.73,203.6535]
[1751796086969,6.8124,146.76,146.73,203.6535]
[1751796087269,5.05208714,146.75,146.73,203.6535]
[1751796087469,6.8124,146.76,146.73,203.6535]
[1751796087772,5.05214058,146.75,146.73,196.84]
[1751796088070,6.8124,146.76,146.73,196.84]
[1751796088372,5.05214043,146.75,146.73,196.84]
[1751796088670,5.05214043,146.74,146.73,196.84]
[1751796094588,5.05214043,146.74,146.72,46.74]
[1751796094782,6.8126,146.75,146.73,196.78]
[1751796095079,5.05186227,146.74,146.73,196.78]
[1751796097582,5.05186227,146.74,146.73,203.5935]
[1751796097884,11.68428683,146.81,146.73,196.78]
[1751796098086,6.8112,146.79,146.73,196.78]
[1751796098282,11.8024817,146.78,146.75,6.8123]
[1751796098478,2.69386268,146.77,146.76,196.7]
[1751796098678,6.8112,146.79,146.76,196.7]
[1751796098879,9.09939526,146.78,146.76,196.7]
[1751796099179,6.8112,146.79,146.76,196.7]
[1751796099374,9.09907624,146.78,146.76,196.7]
[1751796099581,6.8112,146.79,146.76,196.7]
[1751796099880,9.09896351,146.78,146.76,196.7]
[1751796100083,6.8112,146.79,146.76,196.7]
[1751796100280,9.1007376,146.78,146.76,196.7]
[1751796100479,6.8112,146.79,146.76,196.7]
[1751796100682,9.10064988,146.78,146.76,196.7]
[1751796100881,6.8112,146.79,146.76,203.5121]
[1751796101081,9.1012356,146.78,146.76,203.5121]
[1751796101283,6.8112,146.79,146.76,203.5121]
[1751796101478,9.1004948,146.78,146.76,203.5121]
[1751796101682,6.8112,146.79,146.76,203.5121]
[1751796101883,9.10037593,146.78,146.76,203.5121]
[1751796102084,6.8112,146.79,146.76,203.5121]
[1751796102383,9.09974927,146.78,146.76,203.5121]
[1751796102585,6.8112,146.79,146.76,203.5121]
[1751796102783,9.09962884,146.78,146.76,203.5121]
[1751796102984,6.8112,146.79,146.76,203.5121]
[1751796103180,9.09962884,146.78,146.76,203.5121]
[1751796103381,6.8112,146.79,146.76,203.5121]
[1751796103578,9.09938474,146.78,146.77,6.8116]
[1751796103778,9.46468683,146.82,146.77,46.72]
[1751796103982,9.46468683,146.83,146.77,46.72]
[1751796104181,16.27378683,146.83,146.79,6.8103]
[1751796104383,9.46468683,146.83,146.8,196.58]
[1751796105284,6.809,146.83,146.8,196.58]
[1751796105690,6.8094,146.82,146.8,196.58]
[1751796109892,4.94634341,146.81,146.8,196.58]
[1751796110085,6.8094,146.82,146.8,196.58]
[1751796110494,6.8098,146.81,146.8,196.58]
[1751796110696,9.51638528,146.81,146.8,196.58]
[1751796111193,9.51638528,146.81,146.77,6.8115]
[1751796111396,2.70637119,146.8,146.76,46.7]
[1751796111695,2.70637119,146.79,146.77,196.4]
[1751796111896,6.8111,146.79,146.77,196.4]
[1751796114996,6.8112,146.78,146.76,46.7]
[1751796115197,6.8112,146.78,146.77,196.36]
[1751796117099,11.72202897,146.78,146.76,196.36]
[1751796117299,11.72202897,146.77,146.76,196.36]
[1751796117501,18.53362897,146.77,146.76,196.36]
[1751796118899,23.42283516,146.77,146.76,196.36]
[1751796119201,6.8126,146.75,146.74,46.7]
[1751796119397,11.70181427,146.75,146.74,243.04]
[1751796119597,11.70181427,146.75,146.74,46.7]
[1751796119800,11.70181427,146.75,146.74,243.04]
[1751796121092,11.70181427,146.75,146.74,46.7]
[1751796121297,6.8126,146.75,146.74,243.04]
[1751796122003,6.8126,146.75,146.74,196.32]
[1751796127708,6.8133,146.74,146.72,46.54]
[1751796128009,6.8133,146.74,146.73,196.24]
[1751796129412,6.8135,146.73,146.72,46.54]
[1751796129611,6.8135,146.73,146.72,242.76]
[1751796130404,6.8135,146.73,146.69,9.1118]
[1751796130705,6.8135,146.73,146.7,242.84]
[1751796131711,6.8135,146.73,146.7,249.6549]
[1751796131911,4.546,146.77,146.7,242.84]
[1751796132210,16.50309561,146.76,146.7,242.84]
[1751796132511,6.8135,146.73,146.7,242.84]
[1751796132813,4.546,146.77,146.7,242.84]
[1751796133108,16.50050697,146.76,146.7,242.84]
[1751796133312,7.53343459,146.75,146.71,196.6]
[1751796133508,4.84694369,146.74,146.71,196.6]
[1751796133710,4.546,146.77,146.71,196.6]
[1751796133910,16.47847268,146.76,146.71,196.6]
[1751796134110,7.53607174,146.75,146.71,196.6]
[1751796134311,4.546,146.77,146.71,196.6]
[1751796134511,16.47646833,146.76,146.71,196.6]
[1751796134814,7.53482045,146.75,146.7,46.56]
[1751796135014,4.546,146.77,146.71,196.64]
[1751796135213,16.47704688,146.76,146.71,196.64]
[1751796135412,7.535399,146.75,146.71,196.64]
[1751796135618,6.814,146.72,146.71,196.64]
[1751796136117,4.546,146.77,146.71,196.62]
[1751796136319,6.814,146.72,146.71,196.62]
[1751796136713,4.546,146.77,146.71,196.62]
[1751796136914,18.83335063,146.76,146.71,196.62]
[1751796137212,16.46925063,146.75,146.71,196.62]
[1751796137515,6.814,146.72,146.71,196.62]
[1751796150327,6.8144,146.71,146.7,46.56]
[1751796150731,6.8144,146.71,146.7,243.12]
[1751796157333,6.8142,146.72,146.7,243.12]
[1751796170941,58.43655343,146.76,146.7,243.12]
[1751796170942,6.8133,146.74,146.7,249.9346]
[1751796171240,9.05800782,146.73,146.7,249.9346]
[1751796171430,13.99845343,146.77,146.7,249.9346]
[1751796171630,9.05978852,146.76,146.7,249.9346]
[1751796171835,9.05978852,146.75,146.7,249.9346]
[1751796172036,9.05978852,146.74,146.7,249.9346]
[1751796172235,13.99845343,146.77,146.7,249.9346]
[1751796172437,9.05978852,146.76,146.7,249.9346]
[1751796172736,9.05978852,146.75,146.7,249.9346]
[1751796172941,9.05978852,146.74,146.7,249.9346]
[1751796173236,9.05978852,146.73,146.7,249.9346]
[1751796173436,13.99845343,146.77,146.7,249.9346]
[1751796173638,6.8135,146.73,146.7,249.9346]
[1751796177546,6.8135,146.73,146.7,243.12]
[1751796181947,6.8135,146.73,146.7,249.9349]
[1751796182450,6.8132,146.74,146.7,249.9349]
[1751796182640,6.8132,146.74,146.71,6.8144]
[1751796182845,9.45245343,146.78,146.72,196.24]
[1751796183147,9.07017666,146.77,146.74,6.813]
[1751796183342,9.07017666,146.76,146.75,196.24]
[1751796183548,6.811,146.79,146.75,242.74]
[1751796183748,9.07065921,146.78,146.76,6.8121]
[1751796183950,9.45245343,146.82,146.77,196.5]
[1751796184247,9.01467028,146.81,146.77,203.3115]
[1751796184444,9.01467028,146.8,146.77,203.3115]
[1751796184639,6.8096,146.82,146.77,203.3115]
[1751796184842,9.01010735,146.81,146.77,203.3115]
[1751796185048,6.8103,146.8,146.77,196.5]
[1751796186743,6.8108,146.79,146.77,196.5]
[1751796187151,6.8108,146.79,146.75,53.3125]
[1751796187452,11.98033516,146.78,146.76,196.44]
[1751796187654,5.16913516,146.77,146.76,196.44]
[1751796188258,6.8112,146.78,146.76,196.44]
[1751796190162,6.8116,146.77,146.76,196.44]
[1751796197570,6.8121,146.76,146.75,46.5]
[1751796197762,6.8121,146.76,146.75,242.74]
[1751796199474,9.45245343,146.81,146.75,242.74]
[1751796199668,16.67825062,146.8,146.75,242.74]
[1751796199967,16.67825062,146.79,146.75,242.74]
[1751796200166,16.67825062,146.78,146.75,242.74]
[1751796200468,16.67825062,146.77,146.75,242.74]
[1751796200664,11.78230495,146.76,146.75,242.74]
[1751796201171,4.97020495,146.76,146.75,242.74]
[1751796201668,9.45245343,146.81,146.75,242.74]
[1751796201875,16.68328485,146.8,146.75,242.74]
[1751796202180,16.68328485,146.79,146.75,242.74]
[1751796202370,16.68328485,146.78,146.75,242.74]
[1751796202569,16.68328485,146.78,146.75,249.5526]
[1751796202570,4.97177203,146.77,146.75,249.5526]
[1751796202770,6.8112,146.78,146.75,249.5526]
[1751796202970,4.97246215,146.77,146.75,249.5526]
[1751796203182,6.8112,146.78,146.75,249.5526]
[1751796203483,4.97266655,146.77,146.75,249.5526]
[1751796203684,6.8112,146.78,146.75,249.5526]
[1751796203984,4.972742,146.77,146.75,249.5526]
[1751796204286,6.8112,146.78,146.75,249.5526]
[1751796204478,4.97305807,146.77,146.75,249.5526]
[1751796204676,6.8112,146.78,146.75,249.5526]
[1751796204885,4.97305807,146.77,146.75,249.5526]
[1751796205185,6.8112,146.78,146.75,249.5526]
[1751796205484,4.97342157,146.77,146.75,249.5526]
[1751796205784,6.8112,146.78,146.75,242.74]
[1751796205986,4.97341774,146.77,146.75,242.74]
[1751796206184,6.8112,146.78,146.75,242.74]
[1751796206380,4.97382572,146.77,146.75,242.74]
[1751796206581,6.8112,146.78,146.75,242.74]
[1751796206781,4.97382572,146.77,146.75,242.74]
[1751796206983,6.8112,146.78,146.75,242.74]
[1751796207186,4.97382572,146.77,146.75,242.74]
[1751796207378,6.8118,146.77,146.75,242.74]
[1751796213585,6.8114,146.78,146.75,249.5526]
[1751796213786,4.95721453,146.77,146.75,249.5526]
[1751796213986,6.8114,146.78,146.75,249.5526]
[1751796214188,4.95710158,146.77,146.75,249.5526]
[1751796214387,6.8114,146.78,146.75,249.5526]
[1751796214586,4.9577711,146.77,146.75,249.5526]
[1751796214885,6.8114,146.78,146.75,249.5526]
[1751796215287,4.95817612,146.77,146.75,249.5526]
[1751796215487,6.8114,146.78,146.75,242.74]
[1751796215688,7.72423436,146.77,146.75,242.74]
[1751796215987,6.8114,146.78,146.75,242.74]
[1751796216186,7.725999,146.77,146.75,242.74]
[1751796216388,6.8114,146.78,146.75,242.74]
[1751796216586,7.72730262,146.77,146.75,242.74]
[1751796216884,6.8114,146.78,146.75,242.74]
[1751796217084,7.74246031,146.77,146.75,242.74]
[1751796217281,9.45245343,146.81,146.75,242.74]
[1751796217487,16.77448451,146.8,146.75,242.74]
[1751796217685,16.77448451,146.79,146.75,242.74]
[1751796217886,4.97449037,146.78,146.75,46.5]
[1751796218086,9.45245343,146.82,146.76,203.572]
[1751796218287,16.77883587,146.81,146.76,203.572]
[1751796218488,16.77883587,146.8,146.76,203.572]
[1751796218788,16.77883587,146.79,146.76,203.572]
[1751796219090,4.97549139,146.78,146.76,203.572]
[1751796219285,6.8106,146.8,146.76,203.572]
[1751796219481,11.80442171,146.79,146.76,203.572]
[1751796219689,7.74552065,146.78,146.76,196.76]
[1751796219890,6.8108,146.79,146.76,196.76]
[1751796220086,7.74516887,146.78,146.76,196.76]
[1751796220288,6.8108,146.79,146.76,196.76]
[1751796220584,7.74481032,146.78,146.76,196.76]
[1751796220784,6.8108,146.79,146.76,196.76]
[1751796220986,7.74481032,146.78,146.76,196.76]
[1751796221184,6.8108,146.79,146.76,196.76]
[1751796221386,7.74899107,146.78,146.76,196.76]
[1751796221587,6.8108,146.79,146.76,196.76]
[1751796221788,7.74931426,146.78,146.76,196.76]
[1751796222088,6.8104,146.8,146.76,203.572]
[1751796222288,16.78556864,146.79,146.76,203.572]
[1751796222589,7.74939899,146.78,146.76,203.572]
[1751796222789,6.8104,146.8,146.76,203.572]
[1751796222982,16.81018263,146.79,146.76,196.76]
[1751796223179,4.99959211,146.78,146.76,196.76]
[1751796223394,6.8097,146.82,146.76,199.1614]
[1751796223587,16.8325721,146.81,146.78,6.8109]
[1751796223782,7.77499694,146.8,146.79,196.76]
[1751796224991,7.77499694,146.8,146.76,2.4014]
[1751796225190,5.00103638,146.79,146.77,196.74]
[1751796225489,9.45245343,146.84,146.77,196.74]
[1751796225689,6.8102,146.81,146.77,203.5516]
[1751796225890,7.77466834,146.8,146.77,203.5516]
[1751796226089,7.77466834,146.79,146.77,203.5516]
[1751796226289,9.4679821,146.84,146.77,203.5516]
[1751796226590,16.83312872,146.83,146.77,203.5516]
[1751796226790,16.83312872,146.82,146.77,203.5516]
[1751796226990,23.64302872,146.81,146.77,203.5516]
[1751796227287,7.77518397,146.8,146.77,203.5516]
[1751796227489,5.00175386,146.79,146.77,203.5516]
[1751796227680,9.4679821,146.84,146.77,203.5516]
[1751796227878,16.83657646,146.83,146.77,203.5516]
[1751796228080,16.83657646,146.82,146.77,203.5516]
[1751796228282,16.83657646,146.81,146.77,203.5516]
[1751796228483,7.77801461,146.8,146.77,203.5516]
[1751796228683,5.00175386,146.79,146.77,203.5516]
[1751796228990,6.8103,146.8,146.77,203.5516]
[1751796229189,5.02228001,146.79,146.77,203.5516]
[1751796229386,6.8101,146.81,146.77,203.5516]
[1751796229587,7.79729338,146.8,146.77,203.5516]
[1751796229781,5.02214228,146.79,146.77,203.5516]
[1751796229989,6.8101,146.81,146.78,6.8112]
[1751796230190,7.79729338,146.8,146.78,6.8112]
[1751796230389,5.02214228,146.79,146.78,6.8112]
[1751796232191,5.02214228,146.79,146.77,196.74]
[1751796232192,5.02214228,146.79,146.77,203.5514]
[1751796232391,6.8101,146.81,146.77,203.5514]
[1751796232593,7.79892486,146.8,146.77,203.5514]
[1751796232788,5.02205368,146.79,146.77,203.5514]
[1751796232982,6.8104,146.8,146.77,203.5514]
[1751796233187,5.02192042,146.79,146.77,203.5514]
[1751796233392,6.8104,146.8,146.77,203.5514]
[1751796233591,5.02146612,146.79,146.77,203.5514]
[1751796233792,6.8104,146.8,146.77,203.5514]
[1751796234089,5.02146612,146.79,146.77,203.5514]
[1751796234292,6.8104,146.8,146.77,203.5514]
[1751796234492,5.02104196,146.79,146.77,203.5514]
[1751796234691,6.8104,146.8,146.77,203.5514]
[1751796234891,5.02104196,146.79,146.77,203.5514]
[1751796235093,6.8104,146.8,146.77,203.5514]
[1751796235293,5.02064557,146.79,146.77,203.5514]
[1751796235592,6.8104,146.8,146.77,203.5514]
[1751796235800,5.02064557,146.79,146.77,203.5514]
[1751796236101,6.8104,146.8,146.77,203.5514]
[1751796236395,5.02045996,146.79,146.77,203.5514]
[1751796236596,6.8104,146.8,146.77,203.5514]
[1751796236798,5.02027494,146.79,146.77,203.5514]
[1751796237096,6.8104,146.8,146.77,203.5514]
[1751796237299,5.01996965,146.79,146.77,203.5514]
[1751796237596,6.8104,146.8,146.77,203.5514]
[1751796237794,5.01974298,146.79,146.77,203.5514]
[1751796237994,6.8104,146.8,146.77,203.5514]
[1751796238198,5.01974298,146.79,146.77,203.5514]
[1751796238399,6.8104,146.8,146.77,196.74]
[1751796238695,23.67788519,146.79,146.77,196.74]
[1751796238895,7.79402723,146.78,146.77,196.74]
[1751796239391,9.4679821,146.83,146.77,203.5517]
[1751796239597,16.86833791,146.82,146.77,203.5517]
[1751796239901,16.86833791,146.81,146.77,203.5517]
[1751796240094,16.86833791,146.8,146.77,203.5517]
[1751796240295,5.01950611,146.79,146.77,203.5517]
[1751796240601,16.7068821,146.84,146.77,203.5517]
[1751796240901,16.86828876,146.83,146.77,203.5517]
[1751796241100,16.86828876,146.82,146.77,203.5517]
[1751796241393,18.65919062,146.81,146.77,203.5517]
[1751796241600,7.79433367,146.8,146.77,203.5517]
[1751796241903,6.8103,146.8,146.77,203.5517]
[1751796244798,6.81,146.81,146.77,203.5517]
[1751796245104,6.81,146.81,146.78,6.8111]
[1751796245603,6.8095,146.82,146.78,6.8111]
[1751796245803,16.72551715,146.81,146.78,6.8111]
[1751796246002,6.8095,146.82,146.78,6.8111]
[1751796247203,6.8098,146.81,146.78,6.8111]
[1751796248493,6.8095,146.82,146.78,6.8111]
[1751796249504,6.8095,146.82,146.79,6.8106]
[1751796249703,6.8091,146.83,146.79,6.8106]
[1751796250002,16.64521286,146.82,146.79,6.8106]
[1751796250304,6.8092,146.83,146.79,6.8106]
[1751796250502,13.89893683,146.82,146.8,46.6]
[1751796250708,9.46166547,146.85,146.8,46.6]
[1751796250709,9.46166547,146.85,146.81,196.44]
[1751796250907,23.45398481,146.84,146.81,196.44]
[1751796251107,16.64528481,146.83,146.81,196.44]
[1751796251307,9.06650621,146.82,146.81,196.44]
[1751796251803,6.8087,146.84,146.81,196.44]
[1751796252003,16.6486494,146.83,146.81,196.44]
[1751796252302,6.8081,146.85,146.81,203.2498]
[1751796252498,16.64802316,146.84,146.81,196.44]
[1751796252710,16.64802316,146.83,146.81,196.44]
[1751796253008,9.46166547,146.86,146.81,196.44]
[1751796253204,16.64802518,146.85,146.81,196.44]
[1751796253400,16.64802518,146.84,146.81,196.44]
[1751796253603,16.64797623,146.83,146.81,196.44]
[1751796253809,9.46166547,146.86,146.81,196.44]
[1751796254009,16.65898236,146.85,146.81,196.44]
[1751796254307,6.8093,146.82,146.81,196.44]
[1751796254508,14.40125392,146.82,146.81,196.44]
[1751796257913,23.46942732,146.82,146.81,196.44]
[1751796259517,20.72122751,146.82,146.81,196.44]
[1751796259719,23.47704905,146.82,146.81,196.44]
[1751796262817,23.47910251,146.82,146.81,196.44]
[1751796265021,9.0681734,146.82,146.81,196.44]
[1751796265418,6.8084,146.85,146.81,203.2498]
[1751796265612,16.63343936,146.84,146.81,203.2498]
[1751796265816,14.03856547,146.88,146.81,196.44]
[1751796266011,16.63343936,146.87,146.81,196.44]
[1751796266216,23.44123936,146.86,146.81,203.2497]
[1751796266418,16.63343936,146.85,146.81,203.2497]
[1751796266615,7.60493445,146.84,146.81,203.2497]
[1751796266820,6.8078,146.86,146.82,6.8093]
[1751796267020,16.62927593,146.85,146.81,196.44]
[1751796267321,6.8072,146.87,146.81,196.44]
[1751796267618,16.62737545,146.86,146.81,196.44]
[1751796267823,7.60086167,146.85,146.81,196.44]
[1751796268020,6.8067,146.88,146.81,196.44]
[1751796268219,16.66151868,146.87,146.81,196.44]
[1751796268419,16.66151868,146.86,146.81,196.44]
[1751796268722,6.8067,146.88,146.81,198.7815]
[1751796268922,16.66676866,146.87,146.83,6.8086]
[1751796269119,16.66676866,146.86,146.84,196.16]
[1751796269319,6.8071,146.87,146.85,46.6]
[1751796269520,16.66091716,146.86,146.85,46.6]
[1751796270024,23.46841716,146.86,146.85,46.6]
[1751796270321,14.43708706,146.86,146.85,46.6]
[1751796271018,23.49284624,146.86,146.85,46.6]
[1751796273425,16.68534624,146.86,146.85,46.6]
[1751796274023,7.62958706,146.86,146.85,46.6]
[1751796274324,4.87885121,146.86,146.85,46.6]
[1751796275224,6.8072,146.87,146.85,46.6]
[1751796280234,4.89433916,146.86,146.85,46.6]
[1751796280435,6.8072,146.87,146.85,46.6]
[1751796282736,6.8075,146.86,146.85,46.6]
[1751796284526,18.58388988,146.86,146.85,46.6]
[1751796284928,2.72244821,146.86,146.85,46.6]
[1751796285127,6.8072,146.87,146.85,46.6]
[1751796286336,4.95754794,146.86,146.85,46.6]
[1751796287641,11.76504794,146.86,146.85,46.6]
[1751796287840,14.48797099,146.86,146.85,46.6]
[1751796288340,23.70227497,146.86,146.85,46.6]
[1751796290342,23.71519933,146.86,146.85,46.6]
[1751796290640,16.90769933,146.86,146.85,46.6]
[1751796290845,16.90897439,146.86,146.85,46.6]
[1751796292244,14.19086321,146.86,146.85,46.6]
[1751796295544,9.22015985,146.86,146.85,46.6]
[1751796295750,14.18150961,146.86,146.85,46.6]
[1751796296250,16.90677098,146.86,146.85,46.6]
[1751796299850,14.18150961,146.86,146.85,46.6]
[1751796300254,16.90976336,146.86,146.85,46.6]
[1751796301258,11.9484136,146.86,146.85,46.6]
[1751796302054,9.22015985,146.86,146.85,53.4079]
[1751796302256,6.8062,146.89,146.85,53.4079]
[1751796302455,16.73715468,146.88,146.86,196.1]
[1751796302657,16.73715468,146.87,146.86,196.1]
[1751796303253,9.22872756,146.87,146.86,202.9075]
[1751796304160,6.8058,146.9,146.86,202.9075]
[1751796304457,23.54811975,146.89,146.86,196.1]
[1751796304659,16.74201975,146.88,146.86,196.1]
[1751796304957,11.95922714,146.87,146.86,196.1]
[1751796305156,16.74159821,146.87,146.86,196.1]
[1751796305755,11.95922714,146.87,146.86,196.1]
[1751796305960,11.95922714,146.87,146.86,202.9075]
[1751796306157,16.74413358,146.87,146.86,202.9075]
[1751796306461,16.74413358,146.87,146.86,196.1]
[1751796314576,16.74413358,146.87,146.86,202.9075]
[1751796315476,7.51339079,146.87,146.86,202.9075]
[1751796315678,16.76675474,146.87,146.86,202.9075]
[1751796316776,16.76675474,146.87,146.86,196.1]
[1751796319180,16.76675474,146.87,146.86,202.9075]
[1751796319982,9.25336395,146.87,146.86,202.9075]
[1751796320283,16.79226812,146.87,146.86,202.9075]
[1751796320781,9.48393965,146.93,146.88,6.8065]
[1751796320979,23.61267571,146.92,146.89,196.06]
[1751796321279,16.80777571,146.91,146.89,196.06]
[1751796321481,11.99287588,146.9,146.89,196.06]
[1751796323286,9.26760601,146.9,146.89,196.06]
[1751796323781,16.81920459,146.9,146.89,196.06]
[1751796323985,23.62480459,146.9,146.89,196.06]
[1751796324385,23.62480459,146.9,146.89,196.04]
[1751796326487,33.10874424,146.9,146.89,196.04]
[1751796329690,6.8069,146.88,146.85,53.4079]
[1751796329890,14.09895292,146.87,146.86,196.04]
[1751796330891,14.09895292,146.87,146.85,53.4079]
[1751796331091,6.8069,146.88,146.86,196.04]
[1751796331388,20.88575878,146.87,146.85,46.6]
[1751796331591,14.07875878,146.86,146.85,46.6]
[1751796332090,14.07866845,146.86,146.85,46.6]
[1751796332289,20.88616845,146.86,146.85,46.6]
[1751796332586,14.07866845,146.86,146.79,587.9]
[1751796332789,6.8087,146.84,146.8,249.31]
[1751796332983,9.48393965,146.88,146.8,242.5]
[1751796333297,30.83958901,146.87,146.8,242.5]
[1751796333589,16.61324593,146.86,146.8,242.5]
[1751796333789,16.61324593,146.85,146.8,242.5]
[1751796333989,14.06628462,146.84,146.8,242.5]
[1751796334289,9.260144,146.83,146.81,6.8098]
[1751796334490,6.8082,146.85,146.81,6.8098]
[1751796334692,14.03400542,146.84,146.81,6.8098]
[1751796334889,9.22924711,146.83,146.82,196.06]
[1751796335089,9.22924711,146.83,146.81,6.8098]
[1751796335293,6.8082,146.85,146.82,196.06]
[1751796335591,14.03297878,146.84,146.82,196.06]
[1751796335790,9.2285736,146.83,146.82,196.06]
[1751796336398,6.8082,146.85,146.82,196.06]
[1751796336692,14.03132715,146.84,146.82,196.06]
[1751796336894,6.8082,146.85,146.82,196.06]
[1751796337194,14.03132715,146.84,146.82,196.06]
[1751796337393,6.8082,146.85,146.82,196.06]
[1751796337594,13.98677401,146.84,146.82,196.06]
[1751796337894,6.8082,146.85,146.82,196.06]
[1751796338193,9.22917015,146.84,146.82,196.06]
[1751796338396,6.8082,146.85,146.82,6.8093]
[1751796338598,9.21081171,146.84,146.83,196.06]
[1751796344195,16.01921171,146.84,146.83,196.06]
[1751796345599,9.21081171,146.84,146.83,196.06]
[1751796349495,9.21081171,146.84,146.83,202.8689]
[1751796350304,6.8073,146.87,146.83,202.8689]
[1751796350496,9.19584156,146.86,146.83,202.8689]
[1751796350697,6.8073,146.87,146.84,46.46]
[1751796351000,9.19608567,146.86,146.84,46.46]
[1751796351196,6.8073,146.87,146.84,46.46]
[1751796351396,9.19579462,146.86,146.84,46.46]
[1751796351596,6.8073,146.87,146.84,46.46]
[1751796351796,9.19617971,146.86,146.84,46.46]
[1751796352000,6.8073,146.87,146.84,46.46]
[1751796352201,9.19617971,146.86,146.84,46.46]
[1751796352499,6.8073,146.87,146.84,46.46]
[1751796352699,13.96014345,146.86,146.84,53.2684]
[1751796352902,6.8073,146.87,146.84,53.2684]
[1751796353095,13.96014345,146.86,146.84,53.2684]
[1751796353294,6.8073,146.87,146.84,53.2684]
[1751796353603,13.96049882,146.86,146.85,196.06]
[1751796354003,13.96049882,146.86,146.85,202.8679]
[1751796355202,4.76398821,146.86,146.85,202.8679]
[1751796355395,6.8063,146.89,146.86,6.8074]
[1751796355600,23.31864497,146.88,146.85,196.06]
[1751796355804,16.51190789,146.87,146.82,6.8091]
[1751796356004,9.48393965,146.89,146.82,6.8091]
[1751796356005,16.51130168,146.86,146.83,242.52]
[1751796356304,9.20635328,146.85,146.83,242.52]
[1751796356504,6.808,146.85,146.83,242.52]
[1751796357005,6.808,146.85,146.83,249.3288]
[1751796357403,6.808,146.85,146.83,242.52]
[1751796357706,6.808,146.85,146.83,46.46]
[1751796358004,6.808,146.85,146.84,196.06]
[1751796358207,16.01190424,146.85,146.84,196.06]
[1751796359405,9.20390424,146.85,146.84,196.06]
[1751796359706,9.48393965,146.89,146.84,196.06]
[1751796359907,6.8072,146.87,146.84,202.8681]
[1751796360108,13.98900832,146.86,146.84,202.8681]
[1751796360405,6.8066,146.88,146.85,6.8079]
[1751796360602,16.53248351,146.87,146.85,6.8079]
[1751796360802,13.98939435,146.86,146.85,6.8079]
[1751796361203,13.98946305,146.86,146.85,6.8079]
[1751796361604,9.21431594,146.86,146.85,6.8079]
[1751796362610,6.8066,146.88,146.85,6.8079]
[1751796362809,13.98182633,146.87,146.85,6.8079]
[1751796363005,6.8066,146.88,146.85,6.8079]
[1751796363205,13.98182633,146.87,146.85,6.8079]
[1751796363507,6.8066,146.88,146.85,6.8079]
[1751796363708,13.96832989,146.87,146.85,6.8079]
[1751796363911,6.8066,146.88,146.85,6.8079]
[1751796364106,16.51086963,146.87,146.85,6.8079]
[1751796364306,9.20477712,146.86,146.85,6.8079]
[1751796364911,9.20477712,146.86,146.84,202.8682]
[1751796365114,6.8066,146.88,146.84,202.8682]